bitfinex-derivatives/quotes_ETHF0:USTF0_20250214
["timestamp","ask_amount","ask_price","bid_price","bid_amount"]
[1739551132241,3.94089,2727.5,2727.4,0.48507905]
[1739551132437,0.73317,2727.3,2727.1,0.73318]
[1739551132646,0.73309,2727.5,2727.4,0.7331]
[1739551132838,3.2078,2727.8,2727.4,0.7331]
[1739551133044,3.2078,2727.8,2727.6,0.73305]
[1739551133343,3.2078,2728.1,2727.4,3.2078]
[1739551133639,0.00550186,2728.3,2728.2,0.7329]
[1739551134544,0.73838186,2728.3,2728.2,0.7329]
[1739551134944,0.00550186,2728.3,2728.2,0.7329]
[1739551135845,0.00550186,2728.3,2728.2,1.21814362]
[1739551136040,0.00550186,2728.3,2728.2,0.48524362]
[1739551136232,0.00550186,2728.3,2728.2,1.21814362]
[1739551138244,0.00550186,2728.3,2728.2,0.7329]
[1739551138545,0.00550186,2728.3,2728.2,1.21836309]
[1739551138748,0.00550186,2728.3,2728.2,0.7329]
[1739551138937,0.00550186,2728.3,2728.2,1.21836265]
[1739551141344,0.73838186,2728.3,2728.2,1.21836265]
[1739551141646,0.73838186,2728.3,2728.2,0.48546265]
[1739551141843,3.24218688,2729.2,2728.2,0.48546265]
[1739551142049,3.2078,2728.9,2728.4,3.2078]
[1739551142244,1.83186,2728.8,2728.3,1.07226265]
[1739551142542,0.73285,2728.4,2728.3,0.48546265]
[1739551142753,3.2078,2728.6,2727.5,3.2078]
[1739551143043,0.73313,2727.4,2727.3,0.73313]
[1739551143252,5.04039,2727.8,2726.9,4.16598309]
[1739551143450,0.73313,2727.4,2727.3,0.48642404]
[1739551143654,0.588,2727.7,2727.3,0.48642404]
[1739551143949,3.2078,2727.6,2727.5,0.73309]
[1739551144152,3.2078,2727.6,2727.3,0.48642404]
[1739551144153,0.73311,2727.5,2727.4,0.48642404]
[1739551144741,0.73309,2727.5,2727.4,0.48642404]
[1739551146249,5.06588,2727.6,2727.4,1.21952404]
[1739551146451,5.06588,2727.6,2727.5,0.73309]
[1739551146452,3.7791,2727.6,2727.5,0.73309]
[1739551146649,3.2078,2727.6,2727.5,1.21951404]
[1739551147051,3.2078,2727.6,2727.5,0.48642404]
[1739551147247,3.2078,2727.6,2727.5,1.21951404]
[1739551147951,0.73306,2727.6,2727.5,1.21951404]
[1739551148254,0.5624,2728.0,2727.5,0.48642404]
[1739551148455,0.73293,2728.1,2728.0,0.73296]
[1739551148653,1.1308,2728.2,2728.0,0.73294]
[1739551148960,0.733,2727.9,2727.7,0.73302]
[1739551149155,3.2078,2728.1,2727.5,3.69422404]
[1739551149358,0.5624,2727.8,2727.4,0.73311]
[1739551149560,0.73309,2727.5,2727.4,0.73311]
[1739551149751,0.73308,2727.6,2727.4,0.73312]
[1739551149957,0.73308,2727.6,2727.5,0.48761346]
[1739551150252,3.21140389,2728.3,2727.5,5.88779655]
[1739551150453,0.73303,2727.8,2727.6,0.73305]
[1739551150653,1.83237,2728.1,2727.7,0.48761346]
[1739551150861,0.73301,2727.8,2727.7,0.48761346]
[1739551151064,0.73301,2727.8,2727.1,3.78570186]
[1739551151065,3.2078,2728.0,2727.1,0.00550186]
[1739551151358,3.2078,2727.6,2727.1,0.00550186]
[1739551151657,0.73317,2727.2,2727.1,0.73869186]
[1739551151850,1.0892,2727.5,2727.1,0.00550186]
[1739551152050,1.0892,2727.5,2727.4,0.73312]
[1739551152249,1.0892,2727.5,2727.3,0.73314]
[1739551152452,0.73316,2727.3,2727.2,0.73316]
[1739551152648,0.73313,2727.4,2727.3,0.73313]
[1739551152856,1.0892,2727.5,2727.1,0.00550186]
[1739551153055,1.0892,2727.5,2727.4,0.73312]
[1739551153259,1.821,2727.8,2727.1,5.04627186]
[1739551153451,0.73304,2727.7,2727.6,0.73305]
[1739551153854,3.2078,2727.9,2727.6,0.73306]
[1739551154055,0.73306,2727.7,2727.6,0.73306]
[1739551155162,0.73308,2727.6,2727.5,0.73309]
[1739551155463,0.7331,2727.5,2727.4,0.7331]
[1739551155664,3.2078,2727.9,2727.2,0.5829]
[1739551155961,0.73309,2727.6,2727.5,0.73308]
[1739551156561,3.2078,2727.6,2727.1,3.21330186]
[1739551156768,0.73317,2727.3,2727.2,0.73316]
[1739551156956,1.1135,2727.5,2727.1,3.21330186]
[1739551157161,3.2078,2727.6,2727.1,3.21330186]
[1739551157360,0.73308,2727.6,2727.5,0.73309]
[1739551157754,0.73305,2727.7,2727.6,0.73304]
[1739551158155,0.73301,2727.8,2727.7,0.73301]
[1739551158362,0.73302,2727.8,2727.7,0.73302]
[1739551158773,3.2078,2728.0,2727.9,0.73298]
[1739551159066,0.00360389,2728.3,2728.2,0.7329]
[1739551159367,3.2078,2728.8,2728.1,3.2078]
[1739551159568,3.2078,2728.8,2728.7,0.73277]
[1739551159868,1.1103,2729.0,2728.9,0.73271]
[1739551160165,1.84299,2729.0,2728.9,0.73271]
[1739551160562,0.73274,2728.8,2728.7,0.00550186]
[1739551160863,1.6432,2729.0,2728.7,0.00550186]
[1739551161064,0.73273,2728.9,2728.7,0.73824186]
[1739551161263,0.73274,2728.8,2728.7,0.00550186]
[1739551161461,3.94054,2728.8,2728.7,0.00550186]
[1739551161666,8.60546671,2728.8,2728.0,0.5546]
[1739551161964,3.2078,2728.5,2728.4,0.73285]
[1739551162362,0.73286,2728.4,2728.2,0.73288]
[1739551162676,3.2078,2728.5,2728.0,0.5546]
[1739551162965,3.2078,2728.5,2728.4,0.73285]
[1739551163168,0.00550186,2728.6,2728.5,0.73282]
[1739551163762,0.00550186,2728.6,2728.5,1.21595756]
[1739551164968,0.73829186,2728.6,2728.5,0.48313756]
[1739551166462,0.73829186,2728.6,2728.5,1.21595756]
[1739551166769,0.00550186,2728.6,2728.5,1.21595756]
[1739551166965,0.00935934,2728.6,2728.5,1.21595756]
[1739551168563,0.74214934,2728.6,2728.5,1.21595756]
[1739551168969,0.00935934,2728.6,2728.5,1.21595756]
[1739551169873,0.74214934,2728.6,2728.5,0.48313756]
[1739551170967,0.00935934,2728.6,2728.5,0.48313756]
[1739551171157,0.74214934,2728.6,2728.5,0.48313756]
[1739551171962,0.00935934,2728.6,2728.5,1.21595756]
[1739551172576,0.74214934,2728.6,2728.5,1.21595756]
[1739551173471,0.00935934,2728.6,2728.5,1.21595756]
[1739551173867,0.74214934,2728.6,2728.5,1.21595756]
[1739551174582,0.74214934,2728.6,2728.5,0.48313756]
[1739551175867,0.74214934,2728.6,2728.5,1.21595756]
[1739551176072,0.74214934,2728.6,2728.5,0.48313756]
[1739551176273,0.74214934,2728.6,2728.5,1.21595756]
[1739551177078,0.74215934,2728.6,2728.5,1.21595756]
[1739551178175,0.00935934,2728.6,2728.5,1.21595756]
[1739551179275,0.00935934,2728.6,2728.5,4.06883629]
[1739551179675,1.818,2729.7,2728.7,3.66383]
[1739551179871,2.55051,2729.7,2729.6,0.73253]
[1739551180072,0.73254,2729.6,2729.5,0.73254]
[1739551180268,0.73252,2729.7,2729.2,3.7624]
[1739551180473,0.73252,2729.7,2729.6,0.48313756]
[1739551180978,3.2078,2729.8,2729.6,1.21564756]
[1739551181178,3.2078,2729.8,2729.7,0.7325]
[1739551181676,3.2078,2729.8,2729.7,1.21563756]
[1739551181875,3.94027,2729.8,2729.7,1.21563756]
[1739551182070,3.94027,2729.8,2729.7,0.48313756]
[1739551182473,0.73247,2729.8,2729.7,0.48313756]
[1739551182673,3.2078,2730.2,2729.7,0.48313756]
[1739551182873,0.73247,2729.8,2729.7,1.21561756]
[1739551183173,0.73245,2729.9,2729.7,0.48313756]
[1739551183368,0.73245,2729.9,2729.7,1.21561756]
[1739551183567,0.73247,2729.8,2729.7,0.48313756]
[1739551184179,0.5829,2730.1,2729.7,0.48313756]
[1739551184180,0.73246,2729.9,2729.7,0.48313756]
[1739551184484,0.73247,2729.8,2729.7,1.21561756]
[1739551184779,0.5829,2730.1,2729.5,0.5891]
[1739551185082,0.73249,2729.8,2729.6,0.49027574]
[1739551185273,0.73249,2729.8,2729.7,0.7325]
[1739551185475,3.2078,2730.2,2729.8,0.73247]
[1739551185979,0.73247,2729.8,2729.7,0.73249]
[1739551186371,3.2078,2729.8,2729.4,0.00550186]
[1739551186576,3.94035,2729.5,2729.4,0.00550186]
[1739551186785,3.94035,2729.5,2729.4,0.49586107]
[1739551187482,3.94035,2729.5,2729.4,0.00550186]
[1739551188180,3.94035,2729.5,2729.4,0.49632459]
[1739551189179,0.73274,2728.8,2728.7,0.73275]
[1739551189487,0.73274,2728.8,2728.4,1.28713]
[1739551189488,3.2078,2728.8,2728.4,1.28713]
[1739551189673,0.73282,2728.5,2728.4,0.5543]
[1739551189976,3.2078,2728.8,2728.2,0.73289]
[1739551189977,1.83193,2728.7,2728.2,0.73289]
[1739551190180,0.73287,2728.4,2728.2,0.73289]
[1739551190375,0.73285,2728.4,2728.3,0.73287]
[1739551190576,0.55410186,2728.7,2728.3,0.73287]
[1739551190889,0.73285,2728.4,2728.3,0.73287]
[1739551191685,0.73284,2728.5,2728.3,0.73287]
[1739551191882,0.00550186,2728.7,2728.6,0.73279]
[1739551192684,0.73827186,2728.7,2728.6,0.73279]
[1739551192985,0.00550186,2728.7,2728.6,0.73279]
[1739551193385,0.73827186,2728.7,2728.6,0.73279]
[1739551193579,0.00550186,2728.7,2728.6,0.73279]
[1739551195782,0.73827186,2728.7,2728.6,0.73279]
[1739551196187,0.00550186,2728.7,2728.6,0.73279]
[1739551197789,0.73827186,2728.7,2728.6,0.73279]
[1739551198088,0.00550186,2728.7,2728.6,0.73279]
[1739551198887,0.73827186,2728.7,2728.6,0.73279]
[1739551199088,0.00550186,2728.7,2728.6,0.73279]
[1739551200487,3.2078,2730.0,2728.6,9.57172509]
[1739551200687,2.42996,2729.9,2729.8,0.73247]
[1739551200882,1.83095,2730.2,2729.8,0.73247]
[1739551201192,0.73253,2729.6,2729.5,0.5704]
[1739551201381,0.73253,2729.6,2729.5,1.30295]
[1739551201582,3.2078,2730.0,2729.5,0.5704]
[1739551201783,4.888,2730.3,2729.7,3.2078]
[1739551201989,3.2078,2730.6,2730.0,3.2078]
[1739551202294,3.94007,2730.6,2730.4,0.7323]
[1739551202493,0.7323,2730.5,2730.0,5.0238]
[1739551202789,3.2078,2730.7,2730.2,0.73234]
[1739551202985,0.7323,2730.5,2730.2,0.73237]
[1739551203182,3.2078,2730.7,2730.1,0.48721215]
[1739551203591,0.73237,2730.2,2730.1,0.48721215]
[1739551204187,0.73237,2730.2,2729.5,1.30294]
[1739551204188,5.0387,2730.3,2729.5,1.30294]
[1739551204392,3.94029,2729.8,2729.5,1.30294]
[1739551204585,3.2078,2730.2,2729.5,0.5704]
[1739551204888,0.73247,2729.8,2729.6,1.21877239]
[1739551205090,3.2078,2730.2,2729.7,0.73248]
[1739551205292,8.61030509,2730.5,2729.6,0.48626239]
[1739551205491,3.2078,2730.2,2729.7,0.73248]
[1739551205687,3.2078,2730.2,2729.5,0.5704]
[1739551205688,0.73246,2729.9,2729.8,0.48626239]
[1739551206185,0.73258,2729.4,2729.3,0.00550186]
[1739551207490,3.2078,2729.6,2729.3,0.00550186]
[1739551207689,3.2078,2729.6,2729.3,0.73809186]
[1739551207889,0.73256,2729.5,2729.3,0.73809186]
[1739551208094,3.2078,2729.6,2729.3,0.00550186]
[1739551208391,0.73258,2729.4,2729.3,0.00550186]
[1739551212195,3.2078,2729.6,2729.3,0.00550186]
[1739551212389,0.73258,2729.5,2729.4,0.73257]
[1739551212591,3.2078,2729.6,2729.3,0.00550186]
[1739551212797,0.73255,2729.5,2729.4,0.73258]
[1739551212988,3.94033,2729.6,2729.3,0.00550186]
[1739551213189,0.73258,2729.4,2729.3,0.73809186]
[1739551213393,3.2078,2729.6,2729.4,0.73257]
[1739551214093,0.73251,2729.7,2729.3,0.00550186]
[1739551214288,3.2078,2730.3,2730.1,0.73237]
[1739551214493,3.7489,2730.6,2729.7,1.1664]
[1739551214699,3.7489,2730.6,2729.9,3.2078]
[1739551214999,2.54724,2730.7,2730.5,0.73227]
[1739551215390,2.54724,2730.7,2730.0,2.41866]
[1739551215591,2.54724,2730.7,2730.5,0.73226]
[1739551216089,2.54725,2730.7,2730.5,0.73228]
[1739551216706,0.73226,2730.6,2730.5,0.73228]
[1739551217194,0.73224,2730.7,2730.3,0.5373]
[1739551217401,3.2078,2730.9,2730.6,0.73225]
[1739551217602,3.2078,2730.9,2730.3,0.5373]
[1739551217803,0.73225,2730.7,2730.5,0.73228]
[1739551218303,0.73223,2730.7,2730.6,0.48235256]
[1739551219995,0.7323,2730.5,2730.3,0.5373]
[1739551220200,3.2078,2730.9,2730.5,0.73228]
[1739551220504,0.73226,2730.6,2730.5,0.73228]
[1739551220706,0.73226,2730.6,2730.5,1.21439427]
[1739551221402,3.2078,2730.9,2730.5,0.48211427]
[1739551221700,0.73222,2730.8,2730.5,0.48211427]
[1739551221906,3.2078,2730.9,2730.5,0.48211427]
[1739551222205,0.73222,2730.8,2730.7,0.73222]
[1739551222606,3.2078,2730.9,2730.8,0.7322]
[1739551223704,3.93998,2730.9,2730.8,1.21431427]
[1739551224901,0.5411,2731.0,2730.9,0.73218]
[1739551225097,3.2078,2731.5,2730.9,3.2078]
[1739551225402,4.47573,2731.5,2731.4,0.73204]
[1739551225800,3.2078,2731.5,2731.4,0.73204]
[1739551226207,3.2078,2731.9,2731.4,0.48176954]
[1739551226508,3.93961,2732.3,2732.1,0.73185]
[1739551226710,3.2078,2732.6,2731.8,0.5356]
[1739551226906,0.73184,2732.2,2732.0,0.73187]
[1739551227203,0.73182,2732.3,2732.0,0.73186]
[1739551227407,3.2078,2732.6,2731.8,0.5356]
[1739551227710,0.73182,2732.3,2732.0,0.73188]
[1739551228513,0.73179,2732.4,2731.9,0.48107195]
[1739551228711,0.73179,2732.4,2731.8,0.5356]
[1739551228712,3.2078,2732.6,2731.8,0.5356]
[1739551229005,0.73181,2732.3,2732.1,0.73185]
[1739551229212,3.2078,2732.6,2731.8,0.5356]
[1739551229412,0.73184,2732.2,2732.0,0.73187]
[1739551229804,0.73179,2732.4,2732.2,0.73182]
[1739551230211,3.2078,2732.6,2732.2,0.73182]
[1739551230508,0.73179,2732.4,2732.2,0.73182]
[1739551231512,0.73179,2732.4,2731.9,3.2078]
[1739551231814,0.73177,2732.5,2732.3,0.73179]
[1739551232009,3.93953,2732.6,2732.0,0.48013451]
[1739551232214,1.82391,2732.7,2732.5,0.73175]
[1739551232418,0.73173,2732.6,2732.5,0.73175]
[1739551232911,0.73173,2732.6,2732.3,0.00549159]
[1739551233113,0.5593,2732.7,2732.3,0.00549159]
[1739551233316,0.5593,2732.7,2732.4,0.73176]
[1739551233714,0.73178,2732.4,2732.3,0.00549159]
[1739551233916,3.93958,2732.4,2732.3,0.00549159]
[1739551234611,12.77952509,2732.4,2731.4,0.73203]
[1739551234813,2.3528,2732.6,2731.1,1.6728]
[1739551234814,3.2078,2731.9,2731.1,1.6728]
[1739551235016,0.7321,2731.2,2731.1,0.5356]
[1739551235413,0.73214,2731.1,2730.7,5.0198]
[1739551235611,0.73214,2731.1,2731.0,0.73215]
[1739551235813,0.73755735,2731.2,2731.1,0.73211]
[1739551236008,0.00545735,2731.2,2731.1,0.73211]
[1739551239419,0.00545735,2731.2,2731.1,5.34158492]
[1739551240416,0.73199,2731.7,2731.1,6.43975492]
[1739551240719,0.73199,2731.7,2731.6,0.73199]
[1739551241527,3.2078,2732.2,2731.4,3.57172509]
[1739551241714,0.73196,2731.8,2731.7,0.73195]
[1739551242321,5.03741,2732.2,2731.5,0.48084946]
[1739551242520,5.03741,2732.2,2731.3,3.7499]
[1739551242815,0.73196,2731.8,2731.7,0.73196]
[1739551243016,0.73196,2731.8,2731.7,0.72942751]
[1739551243313,0.73193,2731.9,2731.8,0.73193]
[1739551243718,3.2078,2732.2,2731.4,5.40184509]
[1739551243917,0.73188,2732.1,2731.8,0.48161843]
[1739551244112,0.73188,2732.1,2731.6,1.82997]
[1739551244113,0.73188,2732.1,2732.0,0.73188]
[1739551244319,3.2078,2732.2,2731.9,0.48161843]
[1739551244519,0.73188,2732.0,2731.9,1.21351843]
[1739551245522,0.73188,2732.0,2731.9,0.48161843]
[1739551247325,2.54288,2732.0,2731.9,0.48161843]
[1739551249419,0.73188,2732.0,2731.9,0.48161843]
[1739551252423,0.73208,2731.3,2731.2,0.5575]
[1739551253520,1.83023,2731.3,2730.8,2.07188]
[1739551253725,3.2078,2731.4,2730.8,2.65288]
[1739551254018,0.7321,2731.3,2731.2,0.73209]
[1739551254211,0.5507,2731.6,2730.9,5.03828]
[1739551254411,0.73208,2731.4,2731.3,0.73207]
[1739551255119,0.73202,2731.6,2731.5,0.73203]
[1739551255421,3.9398,2731.7,2731.6,0.732]
[1739551256715,3.2078,2732.0,2731.5,1.83003]
[1739551256911,3.2078,2732.0,2731.4,4.70392509]
[1739551257117,0.73197,2731.8,2731.7,0.73195]
[1739551257514,3.2078,2732.0,2731.8,0.73193]
[1739551257515,0.73195,2731.9,2731.8,0.73193]
[1739551259522,3.2078,2732.0,2731.4,1.1322]
[1739551259721,3.2078,2732.3,2731.5,3.2078]
[1739551259921,0.73193,2732.0,2731.9,0.73191]
[1739551260126,0.73198,2731.8,2731.7,0.73197]
[1739551260434,0.73199,2731.7,2731.6,0.73198]
[1739551260627,0.73203,2731.6,2731.5,0.73202]
[1739551260820,0.73203,2731.5,2731.4,1.1322]
[1739551261234,0.73203,2731.5,2731.4,1.86426]
[1739551261422,0.73203,2731.5,2731.4,1.1322]
[1739551261622,0.73203,2731.5,2731.4,1.86426]
[1739551262334,0.73203,2731.5,2731.4,1.1322]
[1739551262527,5.0178,2731.7,2731.0,0.5317]
[1739551262721,0.73218,2731.0,2730.9,0.73218]
[1739551262928,3.7862,2731.4,2730.8,10.12632509]
[1739551263126,3.93987,2731.4,2731.3,0.73208]
[1739551263327,1.83002,2731.6,2731.1,0.73213]
[1739551263529,3.2078,2731.6,2730.8,8.29580509]
[1739551263822,0.73212,2731.2,2731.1,0.73212]
[1739551264335,0.73213,2731.2,2731.1,0.73213]
[1739551264525,0.7321,2731.3,2731.2,0.7321]
[1739551264731,0.73208,2731.4,2731.3,0.73208]
[1739551265029,0.73206,2731.4,2731.3,0.48086232]
[1739551265534,0.73206,2731.4,2731.3,1.21293232]
[1739551265737,0.73206,2731.4,2731.3,0.48086232]
[1739551277033,6.73206,2731.4,2731.3,2.32e-06]
[1739551277343,0.73219,2730.9,2730.8,1.51628]
[1739551277637,3.2078,2730.9,2730.6,0.00549159]
[1739551277838,0.7322,2730.9,2730.8,0.7322]
[1739551278043,5.0168,2731.2,2730.7,1.1302]
[1739551278243,0.73219,2731.0,2730.9,0.73218]
[1739551278741,5.0168,2731.2,2730.7,1.1302]
[1739551278742,7.86467448,2731.2,2730.7,1.1302]
[1739551278941,3.2078,2730.8,2730.6,0.00549159]
[1739551279145,0.73224,2730.7,2730.6,0.00549159]
[1739551279644,2.54124,2730.7,2730.6,0.00549159]
[1739551281140,1.809,2730.7,2730.6,0.73776159]
[1739551281446,0.73224,2730.7,2730.6,0.73776159]
[1739551281651,0.73224,2730.7,2730.6,0.00549159]
[1739551281947,0.73224,2730.8,2730.7,0.73224]
[1739551282138,5.6059,2731.1,2730.6,0.00549159]
[1739551282339,5.0168,2731.1,2731.0,0.73216]
[1739551282544,3.2078,2731.4,2730.8,5.03832]
[1739551282744,3.2078,2731.4,2730.8,1.1217]
[1739551283048,0.73219,2731.0,2730.8,1.8539]
[1739551283253,0.73219,2730.9,2730.8,1.1217]
[1739551283541,3.2078,2731.0,2730.6,0.00549159]
[1739551283542,0.73224,2730.7,2730.6,0.00549159]
[1739551283750,3.94004,2730.7,2730.6,0.00549159]
[1739551285246,6.78791448,2730.7,2730.6,0.00549159]
[1739551285755,0.73241,2730.1,2730.0,0.5401]
[1739551286446,3.9402,2730.2,2730.0,1.27252]
[1739551286751,0.73241,2730.1,2730.0,1.27252]
[1739551286943,0.00549159,2730.4,2730.0,1.27252]
[1739551287143,0.00549159,2730.4,2730.0,0.5401]
[1739551287344,0.73241,2730.1,2730.0,0.5401]
[1739551288050,3.9402,2730.2,2730.0,1.27252]
[1739551288356,3.2078,2730.2,2730.0,1.27252]
[1739551288847,0.73241,2730.1,2730.0,0.5401]
[1739551289350,0.73783159,2730.4,2730.0,0.5401]
[1739551289555,0.73236,2730.3,2730.2,0.73237]
[1739551289853,0.73782159,2730.4,2730.3,0.73235]
[1739551290153,0.73235,2730.3,2730.2,0.73236]
[1739551290746,0.73783159,2730.4,2730.3,0.73235]
[1739551291055,0.73236,2730.3,2730.2,0.73236]
[1739551291352,0.73784159,2730.4,2730.3,0.73235]
[1739551291753,0.00549159,2730.4,2730.3,0.73235]
[1739551292356,0.00549159,2730.4,2730.3,1.30085]
[1739551295255,0.00549159,2730.4,2730.3,0.5685]
[1739551295256,3.94562159,2730.4,2730.3,0.5685]
[1739551295452,0.73241,2730.1,2730.0,0.5401]
[1739551295651,0.73241,2730.1,2730.0,1.27253]
[1739551295852,3.21329159,2730.4,2730.0,0.5401]
[1739551296155,3.21329159,2730.4,2730.3,0.73235]
[1739551296156,0.00549159,2730.4,2730.3,0.73235]
[1739551296356,0.73782159,2730.4,2730.3,0.73235]
[1739551296553,0.00549159,2730.4,2730.3,0.73235]
[1739551296952,0.00549159,2730.4,2730.3,3.94015]
[1739551297646,6.05567448,2731.0,2730.3,3.2078]
[1739551297647,3.2078,2731.0,2730.3,3.2078]
[1739551297847,0.73225,2730.8,2730.7,0.73223]
[1739551298452,0.73229,2730.6,2730.5,0.73227]
[1739551298753,0.73233,2730.5,2730.4,0.7323]
[1739551299452,0.73233,2730.5,2730.2,1.1344]
[1739551299655,0.73235,2730.3,2730.2,1.31036]
[1739551299957,0.73241,2730.1,2730.0,0.5401]
[1739551300354,0.73243,2730.0,2729.9,4.14719]
[1739551300556,0.73243,2730.1,2730.0,0.73241]
[1739551301660,0.73243,2730.0,2729.9,3.41476]
[1739551306353,3.94023,2730.0,2729.9,3.41476]
[1739551307963,3.94023,2730.0,2729.9,4.14722]
[1739551308367,3.2078,2730.4,2730.2,0.73237]
[1739551308558,0.73241,2730.2,2730.1,0.73239]
[1739551309568,3.2078,2730.3,2729.9,0.5697]
[1739551309760,0.73246,2730.0,2729.9,0.73245]
[1739551310266,5.0387,2730.3,2729.8,0.00549159]
[1739551310561,0.73246,2729.9,2729.8,0.00549159]
[1739551311466,1.89616,2729.9,2729.8,0.00549159]
[1739551314665,0.73267,2729.2,2728.8,3.67248]
[1739551314869,0.73267,2729.2,2729.1,0.73266]
[1739551315257,3.94044,2729.3,2729.2,0.73265]
[1739551316365,3.2078,2729.3,2729.0,0.00549159]
[1739551316571,0.73267,2729.1,2729.0,0.73817159]
[1739551317263,0.73267,2729.1,2729.0,0.00549159]
[1739551317467,0.73267,2729.1,2729.0,0.73819159]
[1739551318666,0.5825,2729.2,2729.0,0.73819159]
[1739551318867,1.31515,2729.2,2729.1,0.73267]
[1739551320169,0.5825,2729.2,2729.0,0.00549159]
[1739551320372,0.73267,2729.1,2729.0,0.73816159]
[1739551322372,0.73267,2729.1,2729.0,0.00549159]
[1739551322574,0.5825,2729.2,2728.8,1.84059]
[1739551322775,0.73273,2728.9,2728.8,1.84059]
[1739551325568,0.73278,2728.7,2728.6,0.00549159]
[1739551325765,6.79220001,2728.7,2728.6,0.00549159]
[1739551326173,0.73296,2728.1,2727.8,3.2078]
[1739551326368,3.2078,2728.3,2728.2,0.73292]
[1739551326968,3.94069,2728.3,2728.2,0.73292]
[1739551327171,3.2078,2728.3,2728.2,0.73292]
[1739551327369,3.94069,2728.3,2728.2,0.73292]
[1739551327573,5.05883,2728.6,2728.4,0.73286]
[1739551327871,4.326,2728.6,2728.0,0.00549159]
[1739551328074,4.326,2728.6,2728.2,0.73289]
[1739551328267,0.73288,2728.4,2728.3,0.73289]
[1739551328777,4.326,2728.6,2728.0,0.00549159]
[1739551329673,0.73286,2728.4,2728.3,0.73287]
[1739551330367,0.73286,2728.4,2728.0,0.00549159]
[1739551330368,4.326,2728.6,2728.0,0.00549159]
[1739551330877,4.8689,2728.6,2728.0,0.00549159]
[1739551331078,0.7329,2728.3,2728.2,0.73289]
[1739551331977,0.73294,2728.2,2728.1,0.73293]
[1739551332279,0.73294,2728.1,2728.0,0.00549159]
[1739551332477,0.73294,2728.1,2728.0,0.73846159]
[1739551333581,0.73294,2728.1,2728.0,0.00549159]
[1739551333780,0.73294,2728.1,2728.0,0.73846159]
[1739551333974,0.73294,2728.1,2728.0,0.00549159]
[1739551334574,0.73294,2728.1,2728.0,0.73846159]
[1739551335174,0.73294,2728.1,2728.0,0.00549159]
[1739551335478,3.58456001,2728.1,2728.0,0.00549159]
[1739551337280,0.73294,2728.1,2728.0,0.73846159]
[1739551337583,0.73294,2728.1,2728.0,0.00549159]
[1739551338484,0.73294,2728.1,2728.0,0.73846159]
[1739551339082,1.806,2728.2,2728.0,0.00549159]
[1739551339284,0.73294,2728.2,2728.1,0.73293]
[1739551339486,0.73294,2728.1,2728.0,0.73843159]
[1739551340187,0.73294,2728.1,2728.0,0.00549159]
[1739551342385,0.73294,2728.1,2728.0,0.73846159]
[1739551342585,0.73294,2728.1,2728.0,0.00549159]
[1739551345290,3.58456001,2728.1,2728.0,0.00549159]
[1739551345788,3.58456001,2728.1,2728.0,0.73846159]
[1739551345789,0.73294,2728.1,2728.0,0.73846159]
[1739551346880,3.2078,2728.3,2728.0,0.73846159]
[1739551346881,3.94069,2728.3,2728.2,0.73292]
[1739551347588,0.73292,2728.2,2728.1,1.31052]
[1739551348485,3.94071,2728.3,2728.2,0.73291]
[1739551349390,3.2078,2728.3,2728.2,0.73291]
[1739551349794,3.94069,2728.3,2728.2,0.73291]
[1739551350405,3.2078,2728.3,2728.2,0.73291]
[1739551350596,3.94069,2728.3,2728.2,0.73291]
[1739551350906,3.2078,2728.3,2728.2,0.73291]
[1739551351104,1.805,2728.5,2728.1,1.1416]
[1739551351300,1.805,2728.5,2728.4,0.73286]
[1739551351604,2.53783,2728.5,2728.4,0.73286]
[1739551351999,1.805,2728.5,2728.4,0.73286]
[1739551352299,0.73273,2728.9,2728.5,0.73283]
[1739551352506,3.2078,2729.1,2729.0,0.7327]
[1739551352802,3.9404,2729.4,2729.3,0.73262]
[1739551352999,0.73262,2729.3,2729.2,0.73264]
[1739551353199,3.9404,2729.4,2729.3,0.73262]
[1739551353401,3.2078,2729.4,2729.3,0.73262]
[1739551353603,3.2078,2729.4,2728.9,1.6692]
[1739551353800,3.2078,2729.4,2729.2,0.73263]
[1739551354202,0.73262,2729.3,2729.1,0.73265]
[1739551354403,2.85162001,2729.3,2728.9,1.1177]
[1739551354700,3.2078,2729.4,2728.5,3.789]
[1739551354701,2.85162001,2729.0,2728.5,3.789]
[1739551354905,0.73279,2728.7,2728.6,0.7328]
[1739551355102,2.85162001,2729.0,2728.4,0.5833]
[1739551355302,6.05942001,2728.7,2728.0,3.21329159]
[1739551355603,6.05942001,2728.4,2728.0,0.00549159]
[1739551355902,3.94068,2728.4,2728.0,0.00549159]
[1739551356100,3.94067,2728.4,2728.3,0.73289]
[1739551356407,0.73289,2728.3,2728.2,0.73291]
[1739551356598,6.05942001,2728.7,2728.0,0.00549159]
[1739551356799,6.05942001,2728.7,2728.3,0.73288]
[1739551356800,0.73287,2728.4,2728.3,0.73288]
[1739551357701,6.05942001,2728.7,2728.0,0.00549159]
[1739551357905,0.73284,2728.5,2728.4,0.73285]
[1739551358502,3.2078,2728.7,2728.1,0.73294]
[1739551358800,3.2078,2729.0,2728.9,0.73273]
[1739551359406,0.73273,2728.9,2728.8,0.73273]
[1739551359800,3.2078,2729.0,2728.7,1.6768]
[1739551359996,3.2078,2729.0,2728.7,1.1369]
[1739551360208,0.73274,2728.9,2728.8,0.73274]
[1739551360403,3.2078,2729.0,2728.7,1.1369]
[1739551360604,3.94052,2729.0,2728.9,0.73273]
[1739551361012,3.2078,2729.0,2728.7,1.1369]
[1739551361202,0.73273,2728.9,2728.8,0.73274]
[1739551361598,6.05942001,2729.0,2728.6,0.73279]
[1739551361807,0.73281,2728.6,2728.5,0.5856]
[1739551362405,1.83203,2728.6,2728.0,0.00549159]
[1739551362609,0.73294,2728.1,2728.0,0.00549159]
[1739551362805,6.79235001,2728.2,2728.0,0.73843159]
[1739551363007,0.73294,2728.1,2728.0,0.00549159]